bitfinex-derivatives/quotes_SOLF0:USTF0_20250821
["timestamp","ask_amount","ask_price","bid_price","bid_amount"]
[1755738061045,2.27016386,187.95,187.88,5.3213]
[1755738061239,3.0,187.94,187.88,5.3213]
[1755738061440,3.0,187.94,187.86,2.89]
[1755738061839,3.0,187.99,187.88,2.27016386]
[1755738062044,3.0,187.99,187.92,2.89]
[1755738062545,3.0,187.99,187.95,2.89]
[1755738062935,3.0,187.99,187.91,2.27016386]
[1755738062936,3.0,187.99,187.93,5.3202]
[1755738063139,3.0,187.99,187.92,2.89]
[1755738064346,3.0,187.99,187.93,5.32]
[1755738064841,3.0,187.99,187.92,2.89]
[1755738065350,3.0,187.99,187.95,2.89]
[1755738065642,3.0,187.98,187.95,2.89]
[1755738065847,3.0,187.98,187.92,2.89]
[1755738066743,5.27016386,187.98,187.88,2.27016386]
[1755738066950,5.27016386,187.98,187.9,5.321]
[1755738067148,3.0,187.97,187.89,2.89]
[1755738067752,2.27016386,187.95,187.89,2.89]
[1755738067946,3.0,187.92,187.89,2.89]
[1755738068350,5.27016386,187.95,187.89,8.2112]
[1755738068549,3.0,187.95,187.89,8.2112]
[1755738068853,2.27016386,187.97,187.92,2.89]
[1755738069051,2.27016386,187.97,187.93,2.89]
[1755738069451,3.0,187.96,187.93,2.89]
[1755738069652,3.0,187.95,187.9,2.89]
[1755738069950,3.0,187.95,187.86,2.89]
[1755738071744,3.0,187.95,187.88,5.3213]
[1755738072252,3.0,187.95,187.86,2.89]
[1755738073750,3.0,187.95,187.89,5.3211]
[1755738074652,3.0,187.95,187.9,5.321]
[1755738074853,3.0,187.94,187.9,8.211]
[1755738076557,2.27016386,187.97,187.9,8.211]
[1755738076558,3.0,187.93,187.9,2.89]
[1755738078155,3.0,187.96,187.9,2.89]
[1755738078956,3.0,187.96,187.9,8.2108]
[1755738079158,3.0,187.96,187.9,2.89]
[1755738080463,3.0,187.96,187.87,4.44775763]
[1755738080657,3.0,187.93,187.86,2.89]
[1755738080958,3.0,187.93,187.86,8.2121]
[1755738081365,3.0,187.93,187.87,5.3218]
[1755738081859,5.27016386,187.96,187.86,2.89]
[1755738083460,3.0,187.95,187.86,2.89]
[1755738084862,3.0,187.95,187.87,5.3217]
[1755738086863,3.0,187.95,187.86,2.89]
[1755738087267,3.0,187.95,187.87,5.3217]
[1755738087468,2.27016386,187.94,187.88,2.74]
[1755738088372,3.0,187.95,187.88,8.0616]
[1755738088668,5.27016386,187.95,187.88,8.0616]
[1755738090469,5.27016386,187.95,187.88,2.74]
[1755738090670,2.94,187.94,187.88,2.74]
[1755738092174,2.27016386,187.99,187.88,2.74]
[1755738092466,2.27016386,187.99,187.94,2.74]
[1755738092773,5.21016386,187.99,187.95,2.74]
[1755738093667,2.27016386,187.99,187.96,2.74]
[1755738094167,5.21016386,187.99,187.96,2.74]
[1755738095273,130.3,188.0,187.92,2.27016386]
[1755738095462,130.3,188.0,187.93,2.74]
[1755738095971,130.3,188.0,187.96,2.74]
[1755738096169,130.3,188.0,187.97,2.74]
[1755738097175,130.3,188.0,187.98,2.74]
[1755738097685,132.55016386,188.02,187.98,2.74]
[1755738097886,135.49016386,188.02,187.98,2.74]
[1755738098184,2.94,188.01,187.98,2.74]
[1755738099382,133.22,188.01,187.98,2.74]
[1755738099582,2.94,188.0,187.96,2.74]
[1755738099885,2.94,187.99,187.96,2.74]
[1755738101182,2.94,187.99,187.93,8.06]
[1755738101378,2.94,187.99,187.94,5.3198]
[1755738101687,2.94,187.99,187.96,2.74]
[1755738103187,2.94,188.0,187.96,2.74]
[1755738103381,2.94,188.0,187.92,2.74]
[1755738103581,2.94,187.98,187.92,2.74]
[1755738105384,2.94,187.98,187.92,8.0602]
[1755738106289,2.94,187.98,187.94,2.74]
[1755738107287,2.27016386,187.99,187.94,2.74]
[1755738107483,2.27016386,187.99,187.93,5.3201]
[1755738107689,2.94,187.98,187.95,2.74]
[1755738108885,2.27016386,188.03,187.94,2.27016386]
[1755738109084,2.27016386,188.03,187.95,2.74]
[1755738109692,2.27016386,188.03,187.98,5.3187]
[1755738109992,5.21016386,188.03,188.0,2.74]
[1755738110189,130.24,188.04,188.01,2.74]
[1755738110383,130.24,188.04,188.03,2.74]
[1755738114590,130.24,188.04,188.02,5.3175]
[1755738114890,130.24,188.04,188.02,8.0575]
[1755738115686,130.24,188.04,188.02,5.3175]
[1755738115889,130.24,188.04,188.02,8.0575]
[1755738116693,130.24,188.04,188.03,2.88]
[1755738117391,130.24,188.04,188.03,8.1974]
[1755738117592,130.2,188.06,188.05,2.88]
[1755738118095,130.2,188.06,188.05,8.1966]
[1755738120199,3.01,188.11,188.06,5.3162]
[1755738120503,130.2,188.1,188.03,2.27016386]
[1755738120791,130.2,188.1,188.09,2.88]
[1755738121188,130.2,188.1,188.09,8.1957]
[1755738122386,3.01,188.13,188.1,8.1952]
[1755738122591,3.01,188.12,188.04,5.15016386]
[1755738123095,2.27016386,188.13,188.02,2.27016386]
[1755738123290,3.01,188.12,188.03,2.88]
[1755738123596,5.28016386,188.13,188.03,2.88]
[1755738123794,3.01,188.13,188.06,2.88]
[1755738124592,3.01,188.13,188.09,8.1955]
[1755738125192,3.01,188.13,188.1,5.3153]
[1755738125898,3.01,188.13,188.1,8.1953]
[1755738127302,3.01,188.2,188.12,2.88]
[1755738127597,3.01,188.24,188.14,2.88]
[1755738127803,133.15,188.24,188.2,2.88]
[1755738127998,133.15,188.24,188.21,2.88]
[1755738128194,130.14,188.24,188.21,2.88]
[1755738128395,130.14,188.24,188.17,2.88]
[1755738128902,130.14,188.24,188.22,5.3119]
[1755738129100,130.14,188.24,188.17,2.27016386]
[1755738129308,130.14,188.24,188.18,2.88]
[1755738129498,130.14,188.24,188.21,5.3122]
[1755738129699,130.14,188.24,188.21,8.1922]
[1755738130503,130.17944248,188.24,188.21,0.03922432]
[1755738130802,130.17944248,188.24,188.23,2.88]
[1755738131108,0.03944248,188.24,188.23,8.1917]
[1755738131705,3.01,188.23,188.21,0.03922432]
[1755738132095,0.03944248,188.24,188.23,8.1917]
[1755738132304,0.03944248,188.24,188.23,10.46186386]
[1755738133910,0.03944248,188.24,188.23,8.1917]
[1755738134108,0.03944248,188.24,188.23,2.88]
[1755738134310,0.03944248,188.24,188.22,2.88]
[1755738134502,0.03944248,188.24,188.22,5.3117]
[1755738134706,0.03944248,188.24,188.23,2.88]
[1755738134915,0.03944248,188.24,188.21,0.03922432]
[1755738135216,0.03944248,188.24,188.22,2.88]
[1755738135410,0.03944248,188.24,188.22,8.192]
[1755738135708,3.04944248,188.24,188.21,0.03922432]
[1755738135912,3.01,188.23,188.21,0.03922432]
[1755738138813,3.01,188.22,188.21,0.03922432]
[1755738141212,0.03944248,188.24,188.22,2.88]
[1755738141911,3.04944248,188.24,188.21,0.03922432]
[1755738142111,3.01,188.23,188.21,0.03922432]
[1755738142310,3.01,188.22,188.21,0.03922432]
[1755738143815,0.03944248,188.24,188.21,0.03922432]
[1755738144117,3.04944248,188.24,188.21,0.03922432]
[1755738144417,3.01,188.23,188.21,0.03922432]
[1755738145221,3.01,188.22,188.21,0.03922432]
[1755738149518,2.91,188.23,188.21,0.03922432]
[1755738154025,0.03944248,188.24,188.21,0.03922432]
[1755738154226,0.03944248,188.24,188.21,2.95922432]
[1755738154727,0.03944248,188.24,188.22,2.92]
[1755738154926,0.03944248,188.24,188.21,0.03922432]
[1755738155227,0.03944248,188.24,188.23,2.92]
[1755738156122,0.03944248,188.24,188.21,2.95922432]
[1755738156123,2.94944248,188.24,188.21,2.95922432]
[1755738156328,0.03944248,188.24,188.21,0.03922432]
[1755738156521,0.03944248,188.24,188.23,2.92]
[1755738157326,2.91,188.23,188.21,0.03922432]
[1755738157525,2.91,188.22,188.21,0.03922432]
[1755738166028,133.79,188.22,188.21,0.00181993]
[1755738167235,133.79,188.22,188.12,5.19016386]
[1755738167236,2.91,188.21,188.12,2.92]
[1755738167434,2.91,188.18,188.12,2.92]
[1755738168129,2.91,188.18,188.09,7.58576386]
[1755738168130,2.91,188.18,188.06,4.3669387]
[1755738168326,2.91,188.18,188.09,2.92]
[1755738168529,0.04057716,188.17,188.08,2.92]
[1755738169636,0.04057716,188.17,188.1,2.92]
[1755738170730,0.04057716,188.17,188.1,8.2354]
[1755738172131,0.04057716,188.17,188.11,2.92]
[1755738173138,0.04057716,188.17,188.13,5.3145]
[1755738173335,0.04057716,188.17,188.1,2.92]
[1755738173538,0.04057716,188.17,188.1,5.19016386]
[1755738173739,0.04057716,188.17,188.11,2.92]
[1755738173945,0.04057716,188.17,188.11,8.2349]
[1755738174334,0.04057716,188.17,188.11,2.92]
[1755738175536,0.04057716,188.17,188.12,5.3148]
[1755738175741,0.04057716,188.17,188.14,2.92]
[1755738176638,0.04057716,188.17,188.15,2.95]
[1755738176837,0.04057716,188.17,188.11,2.95]
[1755738177038,0.04057716,188.17,188.14,2.95]
[1755738177835,357.1,188.24,188.16,2.27016386]
[1755738178143,357.1,188.24,188.17,2.95]
[1755738178342,132.59016386,188.27,188.17,2.95]
[1755738179144,132.59016386,188.27,188.2,2.95]
[1755738179344,2.27016386,188.27,188.2,2.95]
[1755738179640,2.93,188.26,188.2,2.95]
[1755738181646,2.27016386,188.24,188.16,5.22016386]
[1755738181850,2.93,188.23,188.16,2.95]
[1755738182543,130.38,188.27,188.16,5.22016386]
[1755738182745,130.38,188.27,188.17,2.95]
[1755738182946,130.38,188.27,188.19,2.27016386]
[1755738183241,130.38,188.27,188.21,5.3122]
[1755738185750,133.31,188.27,188.22,8.262]
[1755738186053,2.93,188.26,188.22,2.95]
[1755738187147,2.27016386,188.25,188.16,4.3669387]
[1755738187344,2.93,188.18,188.11,2.95]
[1755738188044,2.93,188.18,188.11,8.2649]
[1755738190747,2.93,188.18,188.11,2.95]
[1755738191348,2.93,188.18,188.09,2.27016386]
[1755738192148,2.93,188.15,188.08,2.95]
[1755738194144,2.93,188.15,188.08,8.2657]
[1755738195449,2.93,188.15,188.08,2.95]
[1755738196857,130.38,188.19,188.08,2.95]
[1755738196858,5.20016386,188.18,188.08,2.95]
[1755738197250,5.20016386,188.18,188.1,2.27016386]
[1755738197451,5.20016386,188.18,188.11,2.95]
[1755738198355,2.27016386,188.18,188.11,2.95]
[1755738198658,2.27016386,188.18,188.12,5.3148]
[1755738198952,362.34016386,188.21,188.13,2.95]
[1755738199157,130.74,188.2,188.13,2.95]
[1755738199357,130.74,188.2,188.13,2.27016386]
[1755738199556,130.74,188.2,188.14,2.95]
[1755738200058,130.74,188.2,188.14,8.2642]
[1755738200259,130.74,188.2,188.14,2.95]
[1755738201958,130.74,188.2,188.14,5.3141]
[1755738202463,130.74,188.2,188.16,2.95]
[1755738202656,130.74,188.2,188.17,2.95]
[1755738204365,2.93,188.19,188.12,2.95]
[1755738204558,2.93,188.19,188.1,2.95]
[1755738204559,2.27016386,188.18,188.1,2.95]
[1755738204960,2.93,188.17,188.1,2.95]
[1755738208665,2.93,188.17,188.1,8.2654]
[1755738209660,2.93,188.17,188.1,2.95]
[1755738210461,2.93,188.17,188.07,200.6358168]
[1755738210659,2.93,188.17,188.08,2.93]
[1755738211569,2.79,188.14,188.08,2.93]
[1755738212672,2.79,188.14,188.07,198.36565294]
[1755738214571,2.79,188.14,188.07,203.68185294]
[1755738215165,2.79,188.14,188.07,198.36565294]
[1755738215768,2.27016386,188.12,188.07,198.36565294]
[1755738215970,2.79,188.1,188.07,198.36565294]
[1755738216362,2.79,188.09,188.07,198.36565294]
[1755738216871,5.06016386,188.09,188.0,2.93]
[1755738217065,5.06016386,188.09,188.0,8.248]
[1755738217262,5.06016386,188.09,188.0,2.93]
[1755738217972,2.79,188.08,188.0,2.93]
[1755738219069,2.79,188.05,187.94,132.87016386]
[1755738219266,2.79,188.05,187.97,2.93]
[1755738222671,5.06016386,188.08,187.97,5.20016386]
[1755738222874,5.06016386,188.08,187.98,2.93]
[1755738223269,5.06016386,188.08,188.01,2.93]
[1755738224671,5.06016386,188.08,188.01,8.2478]
[1755738224873,5.06016386,188.08,188.01,2.93]
[1755738226275,2.79,188.07,188.01,2.93]
[1755738226579,2.79,188.07,187.98,2.93]
[1755738227382,2.79,188.07,187.98,8.2488]
[1755738227774,2.79,188.07,187.98,2.93]
[1755738228281,2.79,188.04,187.98,2.93]
[1755738228688,2.27016386,188.05,187.94,2.27016386]
[1755738228689,2.27016386,188.05,187.99,0.03376384]
[1755738228888,0.03898504,188.03,187.99,0.03376384]
[1755738229082,2.79,188.01,187.99,0.03376384]
[1755738229383,0.03898504,188.03,187.99,0.03376384]
[1755738229384,2.79,188.0,187.99,0.03376384]
[1755738235682,5.06016386,188.0,187.99,0.03376384]
[1755738235980,5.06016386,188.0,187.91,2.93]
[1755738235981,3.0,187.99,187.91,2.93]
[1755738236184,2.27016386,187.97,187.91,2.93]
[1755738237081,0.03440688,187.96,187.91,2.93]
[1755738237390,3.03440688,187.96,187.87,7.59176386]
[1755738237788,3.03440688,187.96,187.88,2.85]
[1755738238192,0.03440688,187.96,187.88,2.85]
[1755738238387,0.03440688,187.96,187.9,2.85]
[1755738239987,3.03440688,187.96,187.9,2.85]
[1755738240793,0.03440688,187.96,187.9,2.85]
[1755738241192,0.03440688,187.96,187.94,2.85]
[1755738241389,0.03440688,187.96,187.9,2.85]
[1755738241886,0.03440688,187.96,187.9,8.171]
[1755738242990,0.03440688,187.96,187.9,2.85]
[1755738244995,3.03440688,187.96,187.9,2.85]
[1755738245195,3.0,187.94,187.9,2.85]
[1755738245397,3.0,187.93,187.9,2.85]
[1755738245799,5.27016386,187.95,187.87,2.85]
[1755738246695,0.04001247,187.93,187.87,2.85]
[1755738247794,3.04001247,187.93,187.87,2.85]
[1755738249095,3.0,187.91,187.84,2.85]
[1755738249999,3.03382733,187.89,187.85,2.85]
[1755738250297,3.0,187.88,187.81,329.1396844]
[1755738250496,3.0,187.88,187.82,2.85]
[1755738252193,2.27016386,187.86,187.82,2.85]
[1755738252395,5.27016386,187.86,187.82,2.85]
[1755738253502,5.27016386,187.86,187.78,2.85]
[1755738254294,0.03643686,187.84,187.79,2.85]
[1755738254599,0.03643686,187.84,187.81,2.85]
[1755738254799,0.03643686,187.84,187.82,2.85]
[1755738254997,0.03643686,187.84,187.79,5.3241]
[1755738255204,0.03643686,187.84,187.78,2.85]
[1755738256105,0.03643686,187.84,187.83,2.85]
[1755738257195,0.03643686,187.84,187.83,8.173]
[1755738257598,0.03643686,187.84,187.83,2.85]
[1755738258104,0.03643686,187.84,187.81,2.85]
[1755738258398,0.03643686,187.84,187.79,2.27016386]
[1755738258603,0.03643686,187.84,187.83,2.85]
[1755738259999,0.03643686,187.84,187.83,5.323]
[1755738260307,0.03643686,187.84,187.83,8.173]
[1755738263904,0.03643686,187.84,187.83,2.85]
[1755738264399,0.03643686,187.84,187.8,5.3236]
[1755738264595,0.03643686,187.84,187.81,2.85]
[1755738264798,0.03643686,187.84,187.78,2.27016386]
[1755738265004,0.03643686,187.84,187.82,2.85]
[1755738265905,0.03643686,187.84,187.81,5.3233]
[1755738266310,2.82643686,187.84,187.8,8.1738]
[1755738267108,2.82643686,187.84,187.81,8.1735]
[1755738268610,2.82643686,187.84,187.81,2.85]
[1755738269109,0.03643686,187.84,187.8,2.85]
[1755738269309,0.03643686,187.84,187.82,2.85]
[1755738270404,0.03643686,187.84,187.83,2.85]
[1755738271009,0.03643686,187.84,187.83,8.173]
[1755738273103,0.03643686,187.84,187.82,5.3233]
[1755738273701,0.03643686,187.84,187.82,8.1733]
[1755738274513,2.82643686,187.84,187.81,5.3235]
[1755738275210,2.82643686,187.84,187.81,8.1735]
[1755738275612,2.79,187.83,187.8,5.3239]
[1755738276214,2.79,187.82,187.77,5.12016386]
[1755738276509,2.79,187.82,187.78,2.85]
[1755738276905,2.79,187.83,187.75,4.40856643]
[1755738277606,0.03559036,187.81,187.75,4.40856643]
[1755738278209,0.03559036,187.81,187.77,5.3245]
[1755738278405,2.82559036,187.81,187.77,8.1745]
[1755738278607,0.03559036,187.81,187.75,4.40856643]
[1755738278806,2.79,187.78,187.74,2.85]
[1755738279705,5.06016386,187.8,187.71,6.67873029]
[1755738279909,5.06016386,187.8,187.71,5.12016386]
[1755738279910,2.79,187.79,187.71,5.12016386]
[1755738280109,2.79,187.79,187.71,2.85]
[1755738280317,2.79,187.79,187.72,5.3261]
[1755738280610,2.79,187.76,187.72,8.1761]
[1755738280814,2.79,187.76,187.73,5.3258]
[1755738281013,0.03999643,187.77,187.73,5.3258]
[1755738281014,0.03999643,187.77,187.73,2.85]
[1755738281219,0.03999643,187.77,187.71,2.85]
[1755738281417,0.03999643,187.77,187.76,5.325]
[1755738283912,0.03999643,187.77,187.76,8.175]
[1755738284715,9.643e-05,187.77,187.76,8.175]
[1755738287009,360.09016386,187.86,187.83,5.323]
[1755738287210,2.79,187.86,187.83,5.323]
[1755738287415,2.79,187.89,187.79,2.85]
[1755738287712,2.79,187.88,187.85,5.3224]
[1755738287908,2.79,187.88,187.82,2.85]
[1755738288313,2.79,187.86,187.83,5.323]
[1755738288511,2.27016386,187.91,187.8,2.85]
[1755738288718,2.79,187.89,187.8,2.85]
[1755738289517,2.27016386,187.88,187.8,2.85]
[1755738289713,2.79,187.87,187.8,2.85]
[1755738290509,2.79,187.87,187.8,8.1737]
[1755738291324,2.79,187.87,187.79,5.3241]
[1755738291915,2.27016386,187.85,187.81,0.03629101]
[1755738292116,2.79,187.83,187.81,0.03629101]
[1755738292314,2.79,187.82,187.81,0.03629101]
[1755738294923,5.06016386,187.82,187.81,0.03629101]
[1755738296922,0.03427477,187.83,187.81,3.05629101]
[1755738298212,0.03427477,187.83,187.81,8.37979101]
[1755738298414,0.03427477,187.83,187.81,0.03629101]
[1755738298610,3.02427477,187.83,187.81,0.03629101]
[1755738299815,0.03427477,187.83,187.81,0.03629101]
[1755738300326,0.03427477,187.83,187.82,8.3433]
[1755738301216,0.03427477,187.83,187.81,5.35989101]
[1755738301421,2.99,187.82,187.81,0.03629101]
[1755738305925,0.03427477,187.83,187.81,0.03629101]
[1755738306323,2.99,187.82,187.81,0.03629101]
[1755738310222,0.03427477,187.83,187.81,0.03629101]
[1755738310428,3.02427477,187.83,187.81,0.03629101]
[1755738310631,0.03427477,187.83,187.81,0.03629101]
[1755738310830,2.99,187.82,187.81,0.03629101]
[1755738312730,5.26016386,187.82,187.81,0.03629101]
[1755738312925,5.80016386,187.82,187.81,0.03629101]
[1755738313133,2.99,187.81,187.72,3.02]
[1755738313435,0.54,187.82,187.72,3.02]
[1755738313436,5.26016386,187.79,187.72,8.3459]
[1755738314432,0.04018113,187.77,187.72,5.3259]
[1755738314640,5.26016386,187.76,187.7,198.75528527]
[1755738315233,5.26016386,187.76,187.7,204.08198527]
[1755738316736,5.26016386,187.76,187.71,5.3263]
[1755738316933,5.26016386,187.76,187.7,198.75528527]
[1755738317734,0.04018113,187.77,187.74,3.02]
[1755738318034,3.03018113,187.77,187.74,3.02]
[1755738318637,0.04018113,187.77,187.71,5.29016386]
[1755738318832,0.04018113,187.77,187.72,3.02]
[1755738319234,0.04018113,187.77,187.73,3.02]
[1755738319440,0.04018113,187.77,187.75,3.02]
[1755738319738,0.04018113,187.77,187.76,3.02]
[1755738320039,0.04018113,187.77,187.76,8.345]
[1755738320738,0.04018113,187.77,187.76,5.325]
[1755738321535,0.04018113,187.77,187.76,8.345]
[1755738323435,0.04018113,187.77,187.71,6.70646491]
[1755738323641,3.03018113,187.77,187.71,3.02]
[1755738324341,3.03018113,187.77,187.74,3.02]
[1755738326142,2.89,187.76,187.72,8.1461]
[1755738326535,2.89,187.76,187.7,203.19158632]
[1755738326742,2.89,187.76,187.7,198.75528527]
[1755738327147,2.89,187.76,187.7,204.08168527]
[1755738327843,5.16016386,187.75,187.68,2.82]
[1755738329745,5.16016386,187.75,187.68,8.1472]
[1755738330852,5.16016386,187.75,187.69,5.327]
[1755738331448,5.16016386,187.75,187.68,5.3272]
[1755738331647,2.89,187.74,187.68,5.3272]
[1755738331852,2.89,187.74,187.65,7.25630105]
[1755738332047,2.89,187.74,187.66,5.3276]
[1755738332351,0.03827755,187.71,187.65,2.82]
[1755738332753,0.03827755,187.71,187.69,2.82]
[1755738333858,0.03827755,187.71,187.67,2.82]
[1755738334158,0.03827755,187.71,187.65,2.82]
[1755738334856,0.03827755,187.71,187.69,2.82]
[1755738335058,0.03827755,187.71,187.67,2.82]
[1755738335250,0.03827755,187.71,187.7,8.1467]
[1755738337360,0.03827755,187.71,187.67,4.43630105]
[1755738337559,0.03827755,187.71,187.68,2.82]
[1755738338964,2.89,187.7,187.66,2.82]
[1755738339764,2.27016386,187.7,187.66,2.82]
[1755738339963,0.03827755,187.71,187.64,6.70646491]
[1755738340264,0.03827755,187.71,187.67,2.82]
[1755738340561,0.03827755,187.71,187.7,2.82]
[1755738341153,0.03827755,187.71,187.7,8.1467]
[1755738342964,0.03827755,187.71,187.7,2.82]
[1755738344660,0.92724584,187.8,187.7,5.09016386]
[1755738344861,358.0,187.83,187.75,2.82]
[1755738345265,358.0,187.83,187.77,2.82]
[1755738346056,358.0,187.83,187.77,8.1447]
[1755738346966,358.0,187.83,187.77,2.82]
[1755738347861,2.89,187.81,187.73,9.52646491]
[1755738348064,5.16016386,187.81,187.73,2.82]
[1755738348764,2.89,187.8,187.73,2.82]
[1755738349166,2.89,187.8,187.7,7.25630105]
[1755738349363,2.89,187.8,187.7,8.1466]
[1755738349668,2.89,187.77,187.67,7.25630105]
[1755738349869,2.89,187.77,187.67,2.82]
[1755738350269,2.89,187.77,187.68,5.3271]
[1755738350866,2.89,187.77,187.67,2.82]
[1755738351071,2.89,187.74,187.67,2.82]
[1755738352669,2.89,187.74,187.64,4.43630105]
[1755738352865,2.89,187.71,187.63,7.25630105]
[1755738353170,2.89,187.71,187.63,12.58500105]
[1755738354380,2.89,187.71,187.63,2.82]
[1755738356275,2.89,187.71,187.63,8.1485]
[1755738356475,2.89,187.71,187.63,2.82]
[1755738356776,2.89,187.71,187.64,5.3282]
[1755738357277,2.89,187.74,187.64,2.27016386]
[1755738357474,2.89,187.74,187.67,8.3573]
[1755738359171,2.89,187.74,187.67,3.03]
[1755738360574,2.89,187.74,187.67,8.3573]
[1755738361076,2.89,187.74,187.67,3.03]
[1755738361378,136.20016386,187.78,187.67,5.30016386]
[1755738361679,136.20016386,187.78,187.68,3.03]
[1755738362078,136.20016386,187.78,187.7,5.3267]
[1755738363282,5.16016386,187.78,187.7,5.3267]
[1755738363471,2.89,187.78,187.71,3.03]
[1755738363674,2.27016386,187.79,187.71,3.03]
[1755738364180,5.16016386,187.79,187.75,3.03]
[1755738364376,5.16016386,187.79,187.7,2.27016386]
[1755738364377,2.89,187.78,187.7,2.27016386]
[1755738364581,2.89,187.78,187.72,3.03]
[1755738364781,131.02,187.8,187.72,3.03]
[1755738364976,2.89,187.79,187.71,5.3264]
[1755738365178,2.89,187.79,187.7,3.03]
[1755738365779,2.89,187.77,187.7,3.03]
[1755738366082,2.89,187.77,187.66,9.73646491]
[1755738366473,2.89,187.77,187.67,5.3275]
[1755738366678,2.27016386,187.75,187.67,5.3275]
[1755738366981,2.89,187.74,187.67,5.3275]
[1755738367883,2.89,187.74,187.68,5.3272]
[1755738368678,2.27016386,187.75,187.67,3.03]
[1755738369077,131.16,187.77,187.67,7.46630105]
[1755738369285,131.16,187.77,187.68,3.03]
[1755738369481,131.16,187.77,187.68,7.46630105]
[1755738369677,2.89,187.76,187.68,4.43630105]
[1755738369981,2.89,187.76,187.69,3.03]
[1755738370181,2.89,187.74,187.66,6.70646491]
[1755738370385,2.89,187.74,187.66,4.43630105]
[1755738370585,5.3266,187.71,187.66,9.76410105]
[1755738370885,5.3266,187.71,187.67,3.03]
[1755738371883,5.3266,187.71,187.67,8.3575]
[1755738372083,2.89,187.74,187.67,8.3575]
[1755738372084,5.3262,187.72,187.67,8.3575]
[1755738372282,5.3262,187.72,187.68,3.03]
[1755738372585,5.3262,187.72,187.66,4.43630105]
[1755738372586,2.89,187.74,187.7,3.03]
[1755738373084,131.16,187.76,187.7,3.03]
[1755738373487,2.89,187.73,187.66,4.43630105]
[1755738373686,2.89,187.73,187.67,3.03]
[1755738374285,8.2159,187.73,187.69,3.03]
[1755738374480,2.89,187.72,187.68,5.3272]
[1755738375381,2.89,187.72,187.65,7.46630105]
[1755738375382,2.89,187.71,187.67,5.3275]
[1755738375880,2.89,187.71,187.67,8.3575]
[1755738376385,5.3264,187.72,187.68,8.3572]
[1755738376581,8.2164,187.72,187.68,8.3572]
[1755738377577,5.3259,187.73,187.69,5.327]
[1755738377776,8.2159,187.73,187.69,8.357]
[1755738378189,5.3261,187.72,187.69,8.357]
[1755738379189,2.89,187.78,187.7,3.03]
[1755738379692,8.2147,187.78,187.74,5.3255]
[1755738379879,8.2147,187.78,187.74,8.3555]
[1755738380984,2.89,187.77,187.74,8.3555]
[1755738381289,8.2148,187.77,187.74,3.03]
[1755738381494,2.89,187.76,187.73,5.3258]
[1755738381683,2.89,187.75,187.73,5.3258]
[1755738382084,5.3248,187.77,187.73,5.3258]
[1755738382287,2.89,187.76,187.73,5.3258]
[1755738382685,8.2145,187.78,187.74,5.3254]
[1755738382883,8.2145,187.78,187.74,8.3554]
[1755738383285,2.89,187.77,187.74,8.3554]
[1755738383490,2.89,187.77,187.74,5.3254]
[1755738384990,134.07,187.78,187.72,5.326]
[1755738385186,2.89,187.78,187.7,3.03]
[1755738385692,2.89,187.78,187.73,5.3258]
[1755738385693,134.01,187.78,187.73,5.3258]